Cogmind - Beta 14 @@@ ROGUE MODE // 2024.10.10 @ 00:28:03 Player: Mallow Result: Destroyed by Autobeam Turret with Autobeam Performance ------------- Evolutions (0) 0 Regions Visited (3) 600 Robots Destroyed (18) 90 Value Destroyed (486) 486 Prototype IDs (2) 40 Alien Tech Used (0) 0 Bonus (30) 30 TOTAL SCORE: 1246 Bonus ------- Follower Combat Kills 30 Cogmind --------- Core Integrity 0/250 Matter 283/300 Energy 100/100 System Corruption 0% Temperature Cool (12) Movement Rolling (110) Location -10/Subcaves Parts ------- > --- POWER (1) -------- (None) > --- PROPULSION (2) --- Subdweller Monowheel Subdweller Monowheel > --- UTILITY (2) ------ (None) > --- WEAPON (2) ------- Subdweller Machine Gun > --- INVENTORY (5) ---- Subdweller Monowheel Small Storage Unit Structural Scanner Subdweller Optics Makeshift Hacking Suite Peak State ------------ > --- POWER ------------ Light Nuclear Core > --- PROPULSION ------- Subdweller Monowheel Subdweller Monowheel > --- UTILITY ---------- Scrap Shield > --- WEAPON ----------- Battle Rifle Subdweller Machine Gun > --- INVENTORY -------- Light Ion Engine Small Storage Unit Structural Scanner ECM Suite Subdweller Machine Gun [Rating: 15] Favorites ----------- Power Light Ion Engine Engine Light Ion Engine Power Core Light Nuclear Core Propulsion Light Treads Treads Light Treads Wheel Subdweller Monowheel Utility Small Storage Unit Device Subdweller Optics Storage Small Storage Unit Processor Signal Interpreter Protection Scrap Shield Weapon Assault Rifle Ballistic Gun Assault Rifle Launcher Grenade Launcher Build | -11 -10 -10 -10 ------- Run | Yrd Mat Min Sub Slots Evolved . | . . . . Power . | . . . . Propulsion . | . . . . Utility . | . . . . Weapon . | . . . . Parts Attached 21 | 6 1 1 13 Power 3 | 1 . . 2 Engine 2 | 1 . . 1 Core 1 | . . . 1 Reactor . | . . . . Propulsion 6 | 2 . . 4 Treads 2 | 2 . . . Leg . | . . . . Wheel 4 | . . . 4 Hover . | . . . . Flight . | . . . . Utility 5 | 1 1 . 3 Device 1 | . . . 1 Storage 1 | 1 . . . Processor 1 | . 1 . . Hackware . | . . . . Protection 2 | . . . 2 Artifact . | . . . . Weapon 7 | 2 . 1 4 Energy Gun . | . . . . Energy Cannon . | . . . . Ballistic Gun 6 | 2 . . 4 Ballistic Cannon . | . . . . Launcher 1 | . . 1 . Special Weapon . | . . . . Impact Weapon . | . . . . Slashing Weapon . | . . . . Piercing Weapon . | . . . . Special Melee Weapon . | . . . . Unidentified Prototypes . | . . . . Parts Lost 8 | . . . 8 Power 2 | . . . 2 Propulsion 1 | . . . 1 Utility 2 | . . . 2 Weapon 3 | . . . 3 Highest Loss Streak 3 | . . . 3 To Critical Strikes . | . . . . Average Slot Usage (%) 93 | . 86 100 85 Engine 11 | . 14 14 8 Core 1 | . . . 5 Treads 21 | . 28 28 8 Wheel 6 | . . . 18 Storage 10 | . 14 14 3 Processor 8 | . 1 14 3 Protection 3 | . . . 9 Ballistic Gun 19 | . 28 14 23 Launcher 8 | . . 13 3 Peak Build Rating 15 | 6 7 7 15 Average Rating 8 | 4 6 7 11 On Entrance 5 | . 6 7 7 Naked Turns . | . . . . Heaviest Build 31 | 12 12 13 31 Greatest Support 40 | 40 40 40 40 Greatest Overweight (x) 3 | . . . 3 Average Overweight (x) . | . . . . Largest Inventory Capacity 8 | 8 8 8 8 Average Capacity 7 | 6 8 8 5 Most Carried 6 | 1 3 4 6 Average Carried 3 | . 1 3 4 Final Capacity 8 | 8 8 8 5 Final Carried 5 | 1 3 4 5 Class Distribution -------------------- 77% | Mutant 21% | Subdweller-Mutant Dominant Class ---------------- Mutant | -10/Materials Mutant | -10/Mines Subdweller-Mutant | -10/Subcaves Resources | -11 -10 -10 -10 ----------- Run | Yrd Mat Min Sub Matter Collected 639 | 220 . 100 319 Remotely . | . . . . Salvage Created 455 | . . 98 357 Parts 38 | . . 12 26 Haulers Intercepted . | . . . . Recyclers Shooed . | . . . . Parts Field Recycled . | . . . . Retrieved Matter . | . . . . Parts Self-Destructed 9 | . . . 9 Prevented . | . . . . Kills | -11 -10 -10 -10 ------- Run | Yrd Mat Min Sub Combat Hostiles Destroyed 17 | . . 5 12 Guns 13 | . . 2 11 AOE 4 | . . 3 1 Classes Destroyed 4 | . . 3 1 Tunneler 1 | . . 1 . Swarmer 7 | . . 3 4 Grunt 5 | . . 2 3 Subdweller 5 | . . . 5 Best Kill Streak 4 | . . 3 4 Combat Bots Only 4 | . . 3 4 Max Kills in Single Turn 1 | . . 1 1 Gunslinging . | . . . . Exploded 1 | . . 1 1 Melee . | . . . . Uniques/NPCs Destroyed . | . . . . Combat | -11 -10 -10 -10 -------- Run | Yrd Mat Min Sub Hostile Shots Fired 163 | . 13 23 127 Missed 49 | . 3 4 42 Damage Taken 1476 | . 84 228 1164 Core 256 | . 25 70 161 Absorbed by Shields . | . . . . Core Remaining (%) 100 | 100 . . . Volleys Fired 71 | . . 18 53 Largest 2 | . . 2 2 Hottest 60 | . . 50 60 Shots Fired 105 | . . 22 83 Gun 99 | . . 18 81 Cannon . | . . . . Launcher 6 | . . 4 2 Special . | . . . . Kinetic 99 | . . 18 81 Thermal . | . . . . Explosive 6 | . . 4 2 Electromagnetic . | . . . . Robot Hit Streak 11 | . . 3 11 Robot Miss Streak 3 | . . 3 3 Penetration Max . | . . . . Secondary Targets 3 | . . . 3 Max Gunslinging Chain 1 | . . . 1 Shots Hit Robots 65 | . . 11 54 Core Hits 27 | . . 9 18 Critical Kills . | . . . . Critical Parts Destroyed . | . . . . Critical Strikes 1 | . . . 1 Destroy 1 | . . . 1 Melee Attacks . | . . . . Impact . | . . . . Slashing . | . . . . Piercing . | . . . . Sneak Attacks . | . . . . Combat Hostiles . | . . . . Follow-up Attacks . | . . . . Damage Inflicted 1469 | . 9 310 1150 Guns 1114 | . . 115 999 Cannons . | . . . . Explosions 336 | . . 185 151 Melee . | . . . . Ramming 19 | . 9 10 . Kinetic 1114 | . . 115 999 Thermal . | . . . . Explosive 336 | . . 185 151 Electromagnetic . | . . . . Impact . | . . . . Slashing . | . . . . Piercing . | . . . . Highest Corruption . | . . . . Average Corruption . | . . . . Corruption Purged . | . . . . Corruption Blocked . | . . . . Overload Shots . | . . . . Overflow Damage 12 | . . 12 . Projectiles . | . . . . Explosions 12 | . . 12 . Melee . | . . . . Knockbacks . | . . . . Impact . | . . . . Kinetic . | . . . . Secondary . | . . . . Self-Inflicted Damage 59 | . . 59 . Shots 2 | . . 2 . Rammed 5 | . 1 4 . Targets Rammed 5 | . 1 4 . Kicked . | . . . . Crushed . | . . . . Highest Temperature 347 | . . 7 347 Average Temperature 143 | . . 4 174 Received Heat Transfer 910 | . . 27 883 Siege Activations . | . . . . Robots Corrupted . | . . . . Combat Hostiles . | . . . . Parts Fried . | . . . . Impact Corruptions . | . . . . Robots Melted . | . . . . Combat Hostiles . | . . . . Parts Melted . | . . . . Heat Transferred . | . . . . Parts Sabotaged . | . . . . Parts Stolen . | . . . . Parts Stripped . | . . . . Power Chain Reactions . | . . . . Alert | -11 -10 -10 -10 ------- Run | Yrd Mat Min Sub Peak Influence 81 | . 35 81 . Initial 13 | . . 13 . Average 29 | . 9 35 . Maximum Alert Level . | . . . . Low Security (%) 100 | 100 100 100 . Level 1 . | . . . . Level 2 . | . . . . Level 3 . | . . . . Level 4 . | . . . . Level 5 . | . . . . High Security . | . . . . Max Security . | . . . . Squads Dispatched . | . . . . Investigation . | . . . . Extermination . | . . . . Reinforcement . | . . . . Assault . | . . . . Garrison . | . . . . Intercept . | . . . . Searches Triggered . | . . . . Construction Impeded . | . . . . Haulers Reinforced . | . . . . Active Scanning Responses . | . . . . Cargo Convoy Interrupts . | . . . . Stealth | -11 -10 -10 -10 --------- Run | Yrd Mat Min Sub Distress Signals . | . . . . Communications Jammed . | . . . . Distress Signals . | . . . . Times Spotted 25 | . 4 5 16 Peak Tracking Total 6 | . 3 3 6 Tactical Retreats 4 | . 1 . 3 Traps | -11 -10 -10 -10 ------- Run | Yrd Mat Min Sub Traps Triggered 1 | . . . 1 Indirectly . | . . . . Trap Hack Attempts . | . . . . Triggered . | . . . . Disarmed . | . . . . Reprogrammed . | . . . . Reused . | . . . . Traps Extracted . | . . . . Installed . | . . . . Triggered . | . . . . Machines | -11 -10 -10 -10 ---------- Run | Yrd Mat Min Sub Machines Disabled 1 | . . . 1 Max in Single Turn 1 | . . . 1 Machines Repaired . | . . . . Machines Dismantled . | . . . . Machines Sabotaged . | . . . . Overloaded Fab Kills . | . . . . Hacking | -11 -10 -10 -10 --------- Run | Yrd Mat Min Sub Machines Accessed 2 | . 2 . . Terminals 2 | . 2 . . Fabricators . | . . . . Repair Stations . | . . . . Recycling Units . | . . . . Scanalyzers . | . . . . Garrison Access . | . . . . Total Hacks 6 | . 6 . . Successful 3 | . 3 . . Failed 3 | . 3 . . Catastrophic 2 | . 2 . . Database Lockouts . | . . . . Manual 2 | . 2 . . Terminals 6 | . 6 . . Fabricators . | . . . . Repair Stations . | . . . . Recycling Units . | . . . . Scanalyzers . | . . . . Garrison Access . | . . . . Terminal Hacks 3 | . 3 . . Robot Analysis 2 | . 2 . . Prototype ID Bank 1 | . 1 . . Fabricator Hacks . | . . . . Repair Station Hacks . | . . . . Recycling Unit Hacks . | . . . . Scanalyzer . | . . . . Garrison Access Hacks . | . . . . Unauthorized Hacks . | . . . . Terminals . | . . . . Fabricators . | . . . . Repair Stations . | . . . . Recycling Units . | . . . . Scanalyzers . | . . . . Garrison Access . | . . . . Data Cores Recovered . | . . . . Used . | . . . . Hacking Detections 2 | . 2 . . Full Trace Events . | . . . . Feedback Events . | . . . . Feedback Blocked . | . . . . Robot Schematics Acquired . | . . . . Robots Built . | . . . . Authchips . | . . . . Time . | . . . . Total Robot Build Rating . | . . . . Part Schematics Acquired . | . . . . Parts Built . | . . . . Authchips . | . . . . Time . | . . . . Total Part Build Rating . | . . . . Parts Repaired . | . . . . Time . | . . . . Parts Recycled . | . . . . Recycled Matter . | . . . . Retrieved Matter . | . . . . Retrieved Components . | . . . . Parts Scanalyzed . | . . . . Part Schematics Acquired . | . . . . Parts Damaged . | . . . . Bothacking | -11 -10 -10 -10 ------------ Run | Yrd Mat Min Sub Used RIF Installer . | . . . . Robots Hacked . | . . . . Non-combat . | . . . . Combat . | . . . . Robot Hacks Applied . | . . . . Relay Couplers Released . | . . . . Fabnet Peak Effective % . | . . . . Robots Rewired . | . . . . Allies Hacked . | . . . . Hacks Repelled . | . . . . Allies | -11 -10 -10 -10 -------- Run | Yrd Mat Min Sub Total Allies 4 | . . 4 . Largest Group 3 | . . 3 3 Highest-Rated Group 40 | . . 40 40 Highest-Rated Ally 31 | . . 31 16 Total Orders . | . . . . Ally Attacks 9 | . . . 9 Total Damage 107 | . . . 107 Kills 1 | . . . 1 Allies Corrupted . | . . . . Allies Melted . | . . . . Intel | -11 -10 -10 -10 ------- Run | Yrd Mat Min Sub Robot Analysis Total 2 | . 2 . . Derelict Logs Recovered 3 | . . 1 2 Drone Launches . | . . . . Drone Recoveries . | . . . . Exploration | -11 -10 -10 -10 ------------- Run | Yrd Mat Min Sub Turns Passed 3147 | 88 372 1577 1110 Spaces Moved 1753 | 52 230 748 723 Core 8 | 4 . . 4 Treads 1224 | 48 230 748 198 Legs . | . . . . Wheels 521 | . . . 521 Hover . | . . . . Flight . | . . . . Fastest Speed 50 | 50 160 160 110 Average Speed 146 | 151 160 160 127 Slowest Speed 200 | 160 160 160 200 Overloaded Moves . | . . . . Propulsion Burnouts . | . . . . Robots Hopped . | . . . . Cave-ins Triggered . | . . . . Exploration Rate (%) 48 | 4 33 99 57 Regions Visited 3 Branch Regions 2 Pre-discovered Areas 2 | . . 1 1 Known Exits Taken 2 | . 1 1 . Unknown Exits Taken 1 | 1 . . . Scrap Searched 9 | . . 1 8 Spaces Dug . | . . . . Terrain Destroyed 45 | . . 41 4 Melee . | . . . . Projectile . | . . . . AOE 45 | . . 41 4 Terrain Rammed . | . . . . Walls Destroyed . | . . . . Machines Disabled . | . . . . Actions | -11 -10 -10 -10 --------- Run | Yrd Mat Min Sub Total 2220 | 58 233 1103 826 Wait 346 | . . 332 14 Move 1750 | 51 229 747 723 Hop . | . . . . Pick Up 10 | 1 2 1 6 Fast Attach 16 | 6 1 . 9 Attach 2 | . . . 2 Detach . | . . . . Swap 3 | . . 1 2 Drop 11 | . . . 11 Fire 71 | . . 18 53 Melee . | . . . . Ram . | . . . . Kick . | . . . . Crush 5 | . 1 4 . Escape Stasis . | . . . . Rewire . | . . . . Trap . | . . . . Miscellaneous 6 | . . . 6 Route ------- -11/Scrapyard -10/Materials -10/Mines (discovered 3 exits: *Mat x2 / *Sub) -10/Subcaves (discovered 2 exits: [*Mat] / [*Rec]) History --------- Turn | Location | Event 10 | -11/Scrapyard | Discovered new exit (range 14) 89 | -11/Scrapyard | Entered Materials 318 | -10/Materials | Build established: Mutant 329 | -10/Materials | Discovered new exit (range 12) 459 | -10/Materials | Identified exit to Mines 461 | -10/Materials | Entered Mines 464 | -10/Mines | Received a Mining Laser from a helpful Derelict 670 | -10/Mines | Learned location of Mines (-8) 946 | -10/Mines | Discovered new exit (range 9) 959 | -10/Mines | Identified exit to Materials 1308 | -10/Mines | Discovered new exit (range 5) 1580 | -10/Mines | Discovered exit to Materials (range 16) 1818 | -10/Mines | Assisted by bots powering up and referring to "LRC-V3" 2036 | -10/Mines | Identified exit to Subcaves 2038 | -10/Mines | Entered Subcaves 2038 | -10/Subcaves | Accompanied by 3 allies 2099 | -10/Subcaves | Learned location of Storage (-7) 2100 | -10/Subcaves | Ambushed by Subdwellers from Twisted Machinery 2127 | -10/Subcaves | Learned Materials stockpile data 2133 | -10/Subcaves | Shifting Twisted Machinery released Battle Rifle 2164 | -10/Subcaves | Shifting Twisted Machinery released Battle Rifle 2276 | -10/Subcaves | Core integrity fell below 50% 2315 | -10/Subcaves | Lost 3 allies 2676 | -10/Subcaves | Core integrity fell below 20% 2710 | -10/Subcaves | Lost 3 parts (1n1u1w) 2727 | -10/Subcaves | Shifting Twisted Machinery released Scrap Shield 2915 | -10/Subcaves | Discovered new exit (range 16) 2998 | -10/Subcaves | Shifting Twisted Machinery released Sub. Monowheel 3011 | -10/Subcaves | Shifting Twisted Machinery released Sub. Optics 3030 | -10/Subcaves | Build established: Subdweller-Mutant 3142 | -10/Subcaves | Discovered new exit (range 8) 3148 | -10/Subcaves | Destroyed by Autobeam Turret with Autobeam Last Messages --------------- S-10 Pest destroyed. Switching to secondary target: Y-45 Defender. Destroyed Flight Unit. S-10 Pest destroyed. Switching to secondary target: Y-45 Defender. Lgt. Assault Rifle fries itself beyond repair. Flight Unit fries itself beyond repair. Lgt. Ion Engine fries itself beyond repair. S-10 Pest destroyed. Switching to secondary target: Y-45 Defender. Flight Unit fries itself beyond repair. Sub. Machine Gun shoots sparks and powers down. Scrap Shield destroyed. Critical hit (Burn: +37). Acquired 13 matter. Acquired 7 matter. EXIT=FOUND Flight Unit fries itself beyond repair. Broken Sub. Machine Gun destroyed. Lgt. Ion Engine destroyed. Map ----- +----------------------------------------------------+ | ?????????????????????????????????????????????????? | | ?????????????????????????????????????????????????? | | ?????????????????????????????????????????????????? | | ???????????????????????????????????????#?????????? | | ??????????????????????????????????? ## #??????? | | ??????????????????????????????????? %% #?????? | | ??????????????????????????????????? #?????? | | ??????????????????????????????????? ###???? | | ??????????????????????????####????? ##??? | | ?????????????????##???????? #????? % ???? | | ?????????????????? ???????? ##???? ????? | | ??????????????????? ???????# ????? % #?????? | | ??????????????????? ??????# ????? #??????? | | ???????????????????? ?????# ##???? #???????? | | ????????????????????? ????## ####?# ##??????? | | ????????????????????# #### ## ### #??????? | | ?????????????????????# # #??????? | | ???????????????????????# # ##??????? | | ???????????????????????# # ## # #???????? | | ???????????????????????# %% ##### #### #?? | | ????????????????????#### ##### #?? | | ????????????????????#" "## #?? | | ????????????????????# ## [ ### | | ????????????????????# ## % ## | | ????????????????????#" t t "# ### | | ????????????????????# "@" "## ##?# | | ????????????????????#"""" """"## ## #?## | | ????????????????????#####<###### #?# ### | | ????????????????????????###???## ###### | | ??????????????????????????????# ##???# | | ??????????????????????????????# ##????# ## | | ?????????????????????????????## #???????## | | ????????????????????????????## ##??????## | | ????????????????????????##?## #???????# ## | | ???????????????? ### # #????#### ## | | ???????????????? ##???# ## | | ???????????????? ##### ## | | ?????????????????#### ## ## ### | | ????????????????????## ??# #### #?# | | ?????????????????????##???# ### #?? | | ??????????????????????????# #### #?? | | ??????????????????????????# #???# ##?# | | ??????????????????????????# ??### #?? | | ??????????????????????????### #?? | | ????????????????????????????## ### #? | | ?????????????????????????????# ##?#### | | ?????????????????????????????# #??????#### | | ?????????????????????????????# #???????????## | | ?????????????????????????????###??????????????#### | | ?????????????????????????????????????????????????? | +----------------------------------------------------+ Best States ------------- Heat Dissipation 25 Energy Generation 14 Energy Capacity 160 Matter Stores 300 Matter Capacity 300 Sight Range 21 Terrain Scan Density 10 Armor Coverage 800 Evasion (%) 40 Recoil Reduction 2 Item Schematics ----------------- None Robot Schematics ------------------ None Fabricated ------------ Nothing Alien Tech Used ----------------- None Achievements -------------- None Challenges ------------ None Game ------ Seed AuthchipThiefBroadsword Manual? 0 Play Time 00:15:11 Cumulative 54.5 hours Start 2024.10.10 @ 00:11:27 End 2024.10.10 @ 00:28:03 Sessions 1 Manual Loads 0 Difficulty Rogue Special Mode None Game No. 78 Rogue 78 Adventurer 0 Explorer 0 Win Type - Total 2 Types 2/0/0/0/0/0/0/0/0 Lore% 37 Gallery% 42 Achievement% 35 Wizard Run 0 Options --------- Layout 0 ASCII 0 Keyboard 0 Movement Arrows Keybinds 0 Fullscreen 2 Font 24/Smallcaps Map View 56x25 Zoom Use 36% Tactical HUD 0 Map Filters NONE Filters NONE Steam 1 RUN: ba8cf2be-eca2-48a1-93f7-6d72fb8b0082